[Event "Late-Titled-Tuesday-Blitz-February-27-2024"]
[Site "Chess.com"]
[Date "2024.02.27"]
[Round "4"]
[White "pfalcon1949"]
[Black "semchik73"]
[Result "0-1"]
[WhiteElo "1916"]
[BlackElo "2434"]
[TimeControl "180+1"]
[EndTime "14:40:09 PST"]
[Termination "semchik73 won by checkmate"]

1. e4 {[%clk 0:03:00.9]} 1... Nf6 {[%clk 0:03:00.1]} 2. e5 {[%clk 0:03:00]} 2...
Nd5 {[%clk 0:03:00.3]} 3. Nc3 {[%clk 0:03:00.1]} 3... e6 {[%clk 0:03:00.2]} 4.
Bc4 {[%clk 0:02:57.7]} 4... Nb6 {[%clk 0:02:57.1]} 5. Bb3 {[%clk 0:02:54.8]}
5... d6 {[%clk 0:02:57.4]} 6. Nf3 {[%clk 0:02:53.6]} 6... Nc6 {[%clk 0:02:56.3]}
7. exd6 {[%clk 0:02:47.3]} 7... Bxd6 {[%clk 0:02:55.9]} 8. O-O {[%clk
0:02:46.9]} 8... O-O {[%clk 0:02:56.1]} 9. h3 {[%clk 0:02:46.4]} 9... Na5 {[%clk
0:02:44.8]} 10. Re1 {[%clk 0:02:43.4]} 10... Nxb3 {[%clk 0:02:44.6]} 11. axb3
{[%clk 0:02:42.8]} 11... Bd7 {[%clk 0:02:36.7]} 12. Qe2 {[%clk 0:02:42.6]} 12...
Bc6 {[%clk 0:02:35.2]} 13. d3 {[%clk 0:02:36.9]} 13... Nd5 {[%clk 0:02:30.8]}
14. Nxd5 {[%clk 0:02:33.1]} 14... Bxd5 {[%clk 0:02:30.3]} 15. Be3 {[%clk
0:02:32.4]} 15... Qf6 {[%clk 0:02:24.5]} 16. d4 {[%clk 0:02:25.6]} 16... Qg6
{[%clk 0:02:15.5]} 17. c4 {[%clk 0:02:22.8]} 17... Be4 {[%clk 0:02:08.2]} 18.
Rac1 {[%clk 0:02:08.5]} 18... Bb4 {[%clk 0:01:47.7]} 19. Red1 {[%clk 0:02:04.1]}
19... Rad8 {[%clk 0:01:41.8]} 20. Kh2 {[%clk 0:02:01.1]} 20... c5 {[%clk
0:01:34.2]} 21. dxc5 {[%clk 0:01:51.6]} 21... Bd3 {[%clk 0:01:33.5]} 22. Rxd3
{[%clk 0:01:35.8]} 22... Qxd3 {[%clk 0:01:33.4]} 23. Qxd3 {[%clk 0:01:32.5]}
23... Rxd3 {[%clk 0:01:34.3]} 24. Nd4 {[%clk 0:01:22.8]} 24... Bxc5 {[%clk
0:01:31.9]} 25. Rc3 {[%clk 0:01:09.3]} 25... Rxc3 {[%clk 0:01:26]} 26. bxc3
{[%clk 0:01:10.2]} 26... a5 {[%clk 0:01:14]} 27. Bd2 {[%clk 0:00:56.5]} 27...
Rd8 {[%clk 0:01:11.9]} 28. Be3 {[%clk 0:00:54.8]} 28... e5 {[%clk 0:01:05.5]}
29. Nb5 {[%clk 0:00:49.4]} 29... Bxe3 {[%clk 0:01:04.3]} 30. fxe3 {[%clk
0:00:50.3]} 30... Rd3 {[%clk 0:01:02.1]} 31. e4 {[%clk 0:00:49.7]} 31... f5
{[%clk 0:00:59.7]} 32. exf5 {[%clk 0:00:49]} 32... e4 {[%clk 0:01:00]} 33. Kg1
{[%clk 0:00:49.5]} 33... e3 {[%clk 0:00:59.9]} 34. Kf1 {[%clk 0:00:49.9]} 34...
Rd2 {[%clk 0:00:57.7]} 35. g4 {[%clk 0:00:47.1]} 35... Kf7 {[%clk 0:00:55.2]}
36. c5 {[%clk 0:00:43.9]} 36... Kf6 {[%clk 0:00:51.3]} 37. Nd6 {[%clk
0:00:37.2]} 37... Rf2+ {[%clk 0:00:40.6]} 38. Ke1 {[%clk 0:00:36.6]} 38... Ke5
{[%clk 0:00:31.5]} 39. Nxb7 {[%clk 0:00:35]} 39... Kf4 {[%clk 0:00:31.4]} 40. c6
{[%clk 0:00:33]} 40... Kf3 {[%clk 0:00:31.7]} 41. c7 {[%clk 0:00:22.5]} 41...
Ra2 {[%clk 0:00:27.5]} 42. Kd1 {[%clk 0:00:19.3]} 42... e2+ {[%clk 0:00:27.9]}
43. Ke1 {[%clk 0:00:16.1]} 43... Ra1+ {[%clk 0:00:27.4]} 44. Kd2 {[%clk
0:00:16.2]} 44... e1=Q+ {[%clk 0:00:26.3]} 45. Kd3 {[%clk 0:00:17.1]} 45... Qe4+
{[%clk 0:00:24.9]} 46. Kd2 {[%clk 0:00:16.1]} 46... Ra2+ {[%clk 0:00:25.1]} 47.
Kd1 {[%clk 0:00:14.9]} 47... Qb1# {[%clk 0:00:23.6]} 0-1

[Event "Late-Titled-Tuesday-Blitz-February-27-2024"]
[Site "Chess.com"]
[Date "2024.02.27"]
[Round "4"]
[White "lucasmito"]
[Black "rhungaski"]
[Result "1-0"]
[WhiteElo "2849"]
[BlackElo "2594"]
[TimeControl "180+1"]
[EndTime "14:40:10 PST"]
[Termination "lucasmito won on time"]

1. e4 {[%clk 0:03:00.9]} 1... c5 {[%clk 0:02:59]} 2. Nf3 {[%clk 0:02:56.4]} 2...
Nc6 {[%clk 0:02:58.5]} 3. Nc3 {[%clk 0:02:46.1]} 3... e5 {[%clk 0:02:53]} 4. Bc4
{[%clk 0:02:44.7]} 4... d6 {[%clk 0:02:47.8]} 5. d3 {[%clk 0:02:42.3]} 5... h6
{[%clk 0:02:35.2]} 6. Nd2 {[%clk 0:02:40.5]} 6... Nf6 {[%clk 0:02:30.2]} 7. Nf1
{[%clk 0:02:34.6]} 7... Be6 {[%clk 0:02:29.6]} 8. Ne3 {[%clk 0:02:31.3]} 8...
Be7 {[%clk 0:02:29.3]} 9. a3 {[%clk 0:02:30.7]} 9... O-O {[%clk 0:02:28.9]} 10.
Ncd5 {[%clk 0:02:13.6]} 10... Nd7 {[%clk 0:02:26.2]} 11. O-O {[%clk 0:01:47.2]}
11... Bg5 {[%clk 0:02:24.8]} 12. c3 {[%clk 0:01:37.8]} 12... Kh7 {[%clk
0:02:10.4]} 13. g3 {[%clk 0:01:15.3]} 13... Bh3 {[%clk 0:01:48.5]} 14. Re1
{[%clk 0:01:01.1]} 14... g6 {[%clk 0:01:34.5]} 15. f4 {[%clk 0:00:37.1]} 15...
exf4 {[%clk 0:01:31.1]} 16. Nxf4 {[%clk 0:00:38]} 16... Bxf4 {[%clk 0:01:26.7]}
17. gxf4 {[%clk 0:00:38.9]} 17... Qh4 {[%clk 0:01:22.5]} 18. Ng2 {[%clk
0:00:32]} 18... Bxg2 {[%clk 0:00:49.9]} 19. Kxg2 {[%clk 0:00:32.9]} 19... Nf6
{[%clk 0:00:48.5]} 20. Rf1 {[%clk 0:00:20.5]} 20... d5 {[%clk 0:00:37.4]} 21.
exd5 {[%clk 0:00:20.1]} 21... Ne7 {[%clk 0:00:37.9]} 22. Qf3 {[%clk 0:00:20]}
22... Nf5 {[%clk 0:00:34.1]} 23. Bd2 {[%clk 0:00:17.5]} 23... Rae8 {[%clk
0:00:30.5]} 24. Rae1 {[%clk 0:00:17.5]} 24... Ng4 {[%clk 0:00:18.1]} 25. h3
{[%clk 0:00:09]} 25... Rxe1 {[%clk 0:00:10]} 26. Rxe1 {[%clk 0:00:05.3]} 26...
Nf6 {[%clk 0:00:04.2]} 27. b4 {[%clk 0:00:03.4]} 27... cxb4 {[%clk 0:00:03.7]}
28. axb4 {[%clk 0:00:04.3]} 28... Nh5 {[%clk 0:00:01.9]} 29. d6 {[%clk
0:00:01.7]} 1-0

[Event "Late-Titled-Tuesday-Blitz-February-27-2024"]
[Site "Chess.com"]
[Date "2024.02.27"]
[Round "4"]
[White "Msb2"]
[Black "CarlosAlbornoz"]
[Result "1-0"]
[WhiteElo "3025"]
[BlackElo "2777"]
[TimeControl "180+1"]
[EndTime "14:40:18 PST"]
[Termination "Msb2 won by resignation"]

1. d4 {[%clk 0:03:00.9]} 1... Nf6 {[%clk 0:02:49.5]} 2. c4 {[%clk 0:03:00.1]}
2... e6 {[%clk 0:02:48.9]} 3. Nc3 {[%clk 0:03:00.7]} 3... Bb4 {[%clk 0:02:47.1]}
4. e3 {[%clk 0:03:01.2]} 4... Bxc3+ {[%clk 0:02:47.1]} 5. bxc3 {[%clk
0:03:02.1]} 5... b6 {[%clk 0:02:47.6]} 6. Bd2 {[%clk 0:03:03]} 6... Bb7 {[%clk
0:02:47.8]} 7. f3 {[%clk 0:03:00.8]} 7... d6 {[%clk 0:02:47.8]} 8. Bd3 {[%clk
0:02:59.8]} 8... Nbd7 {[%clk 0:02:47.6]} 9. e4 {[%clk 0:03:00.3]} 9... e5 {[%clk
0:02:48]} 10. Ne2 {[%clk 0:03:01]} 10... Nh5 {[%clk 0:02:48.1]} 11. O-O {[%clk
0:03:00.8]} 11... O-O {[%clk 0:02:47.7]} 12. g4 {[%clk 0:02:58.3]} 12... Nhf6
{[%clk 0:02:46.1]} 13. Ng3 {[%clk 0:02:58.9]} 13... Ne8 {[%clk 0:02:24.8]} 14.
g5 {[%clk 0:02:56.8]} 14... f6 {[%clk 0:02:22.6]} 15. h4 {[%clk 0:02:53.6]}
15... Qe7 {[%clk 0:02:21.2]} 16. Qe2 {[%clk 0:02:45.7]} 16... fxg5 {[%clk
0:02:18.7]} 17. Bxg5 {[%clk 0:02:38.1]} 17... Qf7 {[%clk 0:02:16.7]} 18. f4
{[%clk 0:02:24.8]} 18... exd4 {[%clk 0:02:14.7]} 19. cxd4 {[%clk 0:02:25.7]}
19... h6 {[%clk 0:02:14.2]} 20. f5 {[%clk 0:02:23.9]} 20... hxg5 {[%clk
0:02:09.3]} 21. hxg5 {[%clk 0:02:24.8]} 21... c5 {[%clk 0:02:08.1]} 22. d5
{[%clk 0:01:57]} 22... Ne5 {[%clk 0:02:03.2]} 23. Kg2 {[%clk 0:01:55]} 23... Qe7
{[%clk 0:01:58.9]} 24. Qh5 {[%clk 0:01:38.4]} 24... Nxd3 {[%clk 0:01:58.1]} 25.
Rf3 {[%clk 0:01:38.7]} 25... g6 {[%clk 0:01:33.2]} 26. Qxg6+ {[%clk 0:01:35.5]}
26... Qg7 {[%clk 0:01:33.4]} 27. Qe6+ {[%clk 0:01:34.6]} 27... Qf7 {[%clk
0:01:32.2]} 28. Rxd3 {[%clk 0:01:30.7]} 28... Qxe6 {[%clk 0:01:31.4]} 29. dxe6
{[%clk 0:01:26]} 29... Ng7 {[%clk 0:01:26]} 30. Kh3 {[%clk 0:01:14.5]} 30...
Rae8 {[%clk 0:01:22.5]} 31. Rxd6 {[%clk 0:01:12.9]} 31... Bxe4 {[%clk
0:01:19.7]} 32. Nxe4 {[%clk 0:01:13.8]} 32... Nxf5 {[%clk 0:01:19.4]} 33. Rd7
{[%clk 0:01:12.7]} 33... Re7 {[%clk 0:01:15.5]} 34. Rxe7 {[%clk 0:01:08.7]}
34... Nxe7 {[%clk 0:01:16.4]} 35. Kg4 {[%clk 0:01:09.2]} 35... Kg7 {[%clk
0:01:16.1]} 36. Rd1 {[%clk 0:01:08.7]} 36... Nc6 {[%clk 0:00:59.4]} 37. Nf6
{[%clk 0:00:56.9]} 37... Rxf6 {[%clk 0:00:56.5]} 38. gxf6+ {[%clk 0:00:57.8]}
38... Kxf6 {[%clk 0:00:57.4]} 39. Re1 {[%clk 0:00:52.1]} 39... Ke7 {[%clk
0:00:53.4]} 40. Kf4 {[%clk 0:00:48.5]} 40... Nd4 {[%clk 0:00:52.8]} 41. Re3
{[%clk 0:00:46.7]} 41... Nc6 {[%clk 0:00:38.4]} 42. Kf5 {[%clk 0:00:44.8]} 42...
Nd4+ {[%clk 0:00:35.4]} 43. Ke5 {[%clk 0:00:45.4]} 43... Nc6+ {[%clk 0:00:35.7]}
44. Kf4 {[%clk 0:00:41]} 44... Nd4 {[%clk 0:00:29.2]} 45. a3 {[%clk 0:00:40.7]}
45... Nc6 {[%clk 0:00:27.7]} 46. Kf5 {[%clk 0:00:40.7]} 46... a6 {[%clk
0:00:22.8]} 47. Rh3 {[%clk 0:00:36.2]} 47... Kd6 {[%clk 0:00:17.5]} 48. Rd3+
{[%clk 0:00:33.9]} 48... Nd4+ {[%clk 0:00:16.4]} 49. Kf6 {[%clk 0:00:31.8]} 1-0

[Event "Late-Titled-Tuesday-Blitz-February-27-2024"]
[Site "Chess.com"]
[Date "2024.02.27"]
[Round "4"]
[White "Piotrek1979"]
[Black "MatyChess1"]
[Result "0-1"]
[WhiteElo "2452"]
[BlackElo "2662"]
[TimeControl "180+1"]
[EndTime "14:40:21 PST"]
[Termination "MatyChess1 won on time"]

1. Nf3 {[%clk 0:03:00.9]} 1... d5 {[%clk 0:02:59.5]} 2. b3 {[%clk 0:02:59.9]}
2... f6 {[%clk 0:02:49.3]} 3. Bb2 {[%clk 0:03:00.8]} 3... e5 {[%clk 0:02:49.4]}
4. d4 {[%clk 0:02:50.8]} 4... e4 {[%clk 0:02:49.1]} 5. Nfd2 {[%clk 0:02:51.4]}
5... f5 {[%clk 0:02:48.7]} 6. e3 {[%clk 0:02:51.9]} 6... Nf6 {[%clk 0:02:49]} 7.
c4 {[%clk 0:02:50.7]} 7... c6 {[%clk 0:02:48.3]} 8. Be2 {[%clk 0:02:47.4]} 8...
Bd6 {[%clk 0:02:39.4]} 9. Ba3 {[%clk 0:02:46.1]} 9... O-O {[%clk 0:02:38]} 10.
Qc1 {[%clk 0:02:39.4]} 10... Be6 {[%clk 0:02:27]} 11. Bxd6 {[%clk 0:02:34.5]}
11... Qxd6 {[%clk 0:02:27.9]} 12. Qa3 {[%clk 0:02:34]} 12... Qc7 {[%clk
0:02:09.3]} 13. g3 {[%clk 0:02:31.5]} 13... Nbd7 {[%clk 0:02:05]} 14. Nc3 {[%clk
0:02:29.7]} 14... a6 {[%clk 0:02:04.3]} 15. Rc1 {[%clk 0:02:22.3]} 15... Qb8
{[%clk 0:01:55.1]} 16. cxd5 {[%clk 0:02:13.8]} 16... Nxd5 {[%clk 0:01:52.5]} 17.
Na4 {[%clk 0:01:55.5]} 17... f4 {[%clk 0:01:31.2]} 18. gxf4 {[%clk 0:01:45.6]}
18... Nxf4 {[%clk 0:01:32.1]} 19. exf4 {[%clk 0:01:19.5]} 19... Qxf4 {[%clk
0:01:33]} 20. Kd1 {[%clk 0:01:11.1]} 20... Rad8 {[%clk 0:01:04]} 21. Nc3 {[%clk
0:00:56.9]} 21... Nf6 {[%clk 0:01:00.2]} 22. Kc2 {[%clk 0:00:44.7]} 22... Bf5
{[%clk 0:00:57.8]} 23. Bc4+ {[%clk 0:00:31.8]} 23... Kh8 {[%clk 0:00:56.5]} 24.
Ne2 {[%clk 0:00:30]} 24... Qh6 {[%clk 0:00:34.5]} 25. Ng3 {[%clk 0:00:22]} 25...
Bg6 {[%clk 0:00:33.9]} 26. Kc3 {[%clk 0:00:11.5]} 26... b5 {[%clk 0:00:22]} 27.
Be2 {[%clk 0:00:10.3]} 27... e3 {[%clk 0:00:18]} 28. Nf3 {[%clk 0:00:10.8]}
28... exf2 {[%clk 0:00:13]} 29. Kb2 {[%clk 0:00:11.3]} 29... Nd5 {[%clk
0:00:10.8]} 30. Qc5 {[%clk 0:00:10.5]} 30... Qe3 {[%clk 0:00:10]} 31. Rc3 {[%clk
0:00:08.5]} 31... Nxc3 {[%clk 0:00:09.5]} 32. Qxc3 {[%clk 0:00:09.4]} 32... Qf4
{[%clk 0:00:04.8]} 33. Rf1 {[%clk 0:00:05.2]} 33... c5 {[%clk 0:00:05.2]} 34.
dxc5 {[%clk 0:00:02.3]} 34... b4 {[%clk 0:00:05.8]} 0-1

[Event "Late-Titled-Tuesday-Blitz-February-27-2024"]
[Site "Chess.com"]
[Date "2024.02.27"]
[Round "4"]
[White "picturesquecheck"]
[Black "arenal72"]
[Result "0-1"]
[WhiteElo "2421"]
[BlackElo "2620"]
[TimeControl "180+1"]
[EndTime "14:40:23 PST"]
[Termination "arenal72 won by resignation"]

1. e4 {[%clk 0:03:00.9]} 1... Nc6 {[%clk 0:02:59.1]} 2. d4 {[%clk 0:03:00.4]}
2... d5 {[%clk 0:02:59.3]} 3. e5 {[%clk 0:02:56]} 3... Bf5 {[%clk 0:02:59.4]} 4.
c3 {[%clk 0:02:55.1]} 4... Qd7 {[%clk 0:02:59.1]} 5. Nf3 {[%clk 0:02:53.9]} 5...
f6 {[%clk 0:02:59.1]} 6. Bb5 {[%clk 0:02:53.4]} 6... a6 {[%clk 0:02:57.6]} 7.
Bxc6 {[%clk 0:02:53.6]} 7... Qxc6 {[%clk 0:02:57.1]} 8. O-O {[%clk 0:02:53.8]}
8... O-O-O {[%clk 0:02:55.3]} 9. Re1 {[%clk 0:02:53]} 9... g5 {[%clk 0:02:55.4]}
10. Na3 {[%clk 0:02:42]} 10... h5 {[%clk 0:02:54.5]} 11. Nc2 {[%clk 0:02:41.1]}
11... h4 {[%clk 0:02:53.6]} 12. Ne3 {[%clk 0:02:39.3]} 12... Bd7 {[%clk
0:02:42.2]} 13. h3 {[%clk 0:02:34.8]} 13... Bg7 {[%clk 0:02:40.6]} 14. Qb3
{[%clk 0:02:31.6]} 14... Be6 {[%clk 0:02:27.3]} 15. Nc2 {[%clk 0:02:22.2]} 15...
Nh6 {[%clk 0:02:23]} 16. Nb4 {[%clk 0:02:22]} 16... Qb6 {[%clk 0:02:19.7]} 17.
exf6 {[%clk 0:02:19.5]} 17... exf6 {[%clk 0:02:17]} 18. Nd3 {[%clk 0:02:15.9]}
18... Qxb3 {[%clk 0:02:12.6]} 19. axb3 {[%clk 0:02:15.4]} 19... Rhe8 {[%clk
0:02:13.2]} 20. Bd2 {[%clk 0:02:07.3]} 20... Bf5 {[%clk 0:02:09.8]} 21. Nc5
{[%clk 0:02:05.3]} 21... Nf7 {[%clk 0:02:05.5]} 22. b4 {[%clk 0:02:00.5]} 22...
Kb8 {[%clk 0:02:02]} 23. Be3 {[%clk 0:01:53.6]} 23... Nd6 {[%clk 0:01:59.8]} 24.
Nd2 {[%clk 0:01:53.8]} 24... Bf8 {[%clk 0:01:56.9]} 25. f3 {[%clk 0:01:44.4]}
25... Re7 {[%clk 0:01:42]} 26. Bf2 {[%clk 0:01:43]} 26... Rde8 {[%clk
0:01:41.9]} 27. Rxe7 {[%clk 0:01:42.8]} 27... Rxe7 {[%clk 0:01:42.8]} 28. Re1
{[%clk 0:01:41.7]} 28... Rxe1+ {[%clk 0:01:41.6]} 29. Bxe1 {[%clk 0:01:42.6]}
29... Ka7 {[%clk 0:01:40.5]} 30. Ncb3 {[%clk 0:01:24.5]} 30... b6 {[%clk
0:01:35]} 31. Nc1 {[%clk 0:01:23.1]} 31... Kb7 {[%clk 0:01:30.8]} 32. Kf2 {[%clk
0:01:23.2]} 32... Kc6 {[%clk 0:01:28.4]} 33. Ke3 {[%clk 0:01:23.1]} 33... Nb5
{[%clk 0:01:26.2]} 34. Nd3 {[%clk 0:01:18.7]} 34... Bd6 {[%clk 0:01:24.4]} 35.
Nf1 {[%clk 0:00:56.5]} 35... Na7 {[%clk 0:01:10.1]} 36. Bd2 {[%clk 0:00:55.6]}
36... Nc8 {[%clk 0:01:08.2]} 37. f4 {[%clk 0:00:54.2]} 37... g4 {[%clk
0:00:59.9]} 38. hxg4 {[%clk 0:00:49.5]} 38... Bxg4 {[%clk 0:01:00.8]} 39. Nh2
{[%clk 0:00:49.3]} 39... Bf5 {[%clk 0:00:58.5]} 40. Nf2 {[%clk 0:00:45]} 40...
Ne7 {[%clk 0:00:56.1]} 41. Kf3 {[%clk 0:00:32.9]} 41... Kb5 {[%clk 0:00:44.9]}
42. Nhg4 {[%clk 0:00:30.7]} 42... Kc4 {[%clk 0:00:43.2]} 43. Nxf6 {[%clk
0:00:29.3]} 43... Kb3 {[%clk 0:00:43.3]} 44. Nxd5 {[%clk 0:00:28.1]} 44... Nxd5
{[%clk 0:00:42.2]} 45. Nh3 {[%clk 0:00:21.5]} 45... Kxb2 {[%clk 0:00:38.8]} 46.
Be1 {[%clk 0:00:19.7]} 46... Bxh3 {[%clk 0:00:33.3]} 47. gxh3 {[%clk 0:00:20.2]}
47... Nxf4 {[%clk 0:00:34]} 48. Bxh4 {[%clk 0:00:20.2]} 48... Nxh3 {[%clk
0:00:34]} 49. c4 {[%clk 0:00:17.9]} 49... Bxb4 {[%clk 0:00:31.3]} 50. Bd8 {[%clk
0:00:17.7]} 50... Bd6 {[%clk 0:00:30.5]} 51. Ke4 {[%clk 0:00:18.1]} 51... Kc3
{[%clk 0:00:25.9]} 52. Kd5 {[%clk 0:00:18.2]} 52... Nf4+ {[%clk 0:00:25.8]} 53.
Kc6 {[%clk 0:00:18]} 53... Kxc4 {[%clk 0:00:26.3]} 54. d5 {[%clk 0:00:17.8]}
54... Nxd5 {[%clk 0:00:25.8]} 0-1

[Event "Late-Titled-Tuesday-Blitz-February-27-2024"]
[Site "Chess.com"]
[Date "2024.02.27"]
[Round "4"]
[White "MiguelEduardoGB"]
[Black "Sjakkerntobi"]
[Result "0-1"]
[WhiteElo "2153"]
[BlackElo "2459"]
[TimeControl "180+1"]
[EndTime "14:40:23 PST"]
[Termination "Sjakkerntobi won on time"]

1. e4 {[%clk 0:02:58]} 1... e6 {[%clk 0:02:59.9]} 2. b3 {[%clk 0:02:58]} 2... d5
{[%clk 0:03:00.6]} 3. Bb2 {[%clk 0:02:58.5]} 3... a6 {[%clk 0:02:58.2]} 4. exd5
{[%clk 0:02:56.3]} 4... exd5 {[%clk 0:02:59]} 5. Nf3 {[%clk 0:02:56.6]} 5... Nf6
{[%clk 0:02:59.4]} 6. Be2 {[%clk 0:02:55.8]} 6... Bd6 {[%clk 0:02:58.8]} 7. O-O
{[%clk 0:02:56]} 7... O-O {[%clk 0:02:59.5]} 8. d4 {[%clk 0:02:56.5]} 8... Bf5
{[%clk 0:02:59.1]} 9. Nbd2 {[%clk 0:02:55.4]} 9... Nbd7 {[%clk 0:02:58.9]} 10.
c4 {[%clk 0:02:55.6]} 10... c6 {[%clk 0:02:59.1]} 11. Ne5 {[%clk 0:02:45.2]}
11... Re8 {[%clk 0:02:58.4]} 12. f4 {[%clk 0:02:44.9]} 12... Ne4 {[%clk
0:02:57.3]} 13. Nxe4 {[%clk 0:02:40.6]} 13... Bxe4 {[%clk 0:02:57.6]} 14. Bh5
{[%clk 0:02:22.2]} 14... g6 {[%clk 0:02:53.1]} 15. Bf3 {[%clk 0:02:19.9]} 15...
Nf6 {[%clk 0:02:47.4]} 16. c5 {[%clk 0:02:11.4]} 16... Bf8 {[%clk 0:02:44]} 17.
Rc1 {[%clk 0:01:20.6]} 17... Bh6 {[%clk 0:02:38.6]} 18. g3 {[%clk 0:01:16.1]}
18... Bxf3 {[%clk 0:02:38.6]} 19. Qxf3 {[%clk 0:01:16]} 19... Ne4 {[%clk
0:02:39.5]} 20. Rcd1 {[%clk 0:01:08.8]} 20... Qc8 {[%clk 0:02:16.5]} 21. f5
{[%clk 0:00:36.1]} 21... Qxf5 {[%clk 0:02:14.7]} 22. Qxf5 {[%clk 0:00:36.5]}
22... gxf5 {[%clk 0:02:15.6]} 23. Rxf5 {[%clk 0:00:37.1]} 23... f6 {[%clk
0:02:00]} 24. Ng4 {[%clk 0:00:36.5]} 24... Bg7 {[%clk 0:02:00.1]} 25. Rdf1
{[%clk 0:00:28.7]} 25... Kf7 {[%clk 0:01:50.9]} 26. Bc1 {[%clk 0:00:25]} 26...
Kg6 {[%clk 0:01:49.1]} 27. Kg2 {[%clk 0:00:20.2]} 27... h5 {[%clk 0:01:49.1]}
28. Ne3 {[%clk 0:00:16.6]} 28... Nc3 {[%clk 0:01:37.4]} 29. R1f2 {[%clk
0:00:13.4]} 29... Re6 {[%clk 0:01:30]} 30. g4 {[%clk 0:00:13]} 30... hxg4 {[%clk
0:01:25.2]} 31. Nxg4 {[%clk 0:00:13.2]} 31... Rae8 {[%clk 0:01:17.6]} 32. h4
{[%clk 0:00:13.4]} 32... Re2 {[%clk 0:01:13.2]} 33. h5+ {[%clk 0:00:13.8]} 33...
Kf7 {[%clk 0:01:13.5]} 34. Ne5+ {[%clk 0:00:13.4]} 34... Kg8 {[%clk 0:01:12.1]}
35. Nd7 {[%clk 0:00:09.9]} 35... Rxf2+ {[%clk 0:01:11.4]} 36. Rxf2 {[%clk
0:00:10.8]} 36... Re2 {[%clk 0:01:08.8]} 37. Bf4 {[%clk 0:00:06.6]} 37... Rxf2+
{[%clk 0:00:57.4]} 38. Kxf2 {[%clk 0:00:07.5]} 38... Kf7 {[%clk 0:00:58.1]} 39.
h6 {[%clk 0:00:07.5]} 39... Bh8 {[%clk 0:00:55.1]} 40. a4 {[%clk 0:00:07.4]}
40... Kg6 {[%clk 0:00:40.7]} 41. Kf3 {[%clk 0:00:07.6]} 41... Ne4 {[%clk
0:00:39.1]} 42. Nb6 {[%clk 0:00:07.1]} 42... Ng5+ {[%clk 0:00:37.3]} 43. Kg4
{[%clk 0:00:06.8]} 43... f5+ {[%clk 0:00:32.9]} 44. Kg3 {[%clk 0:00:05.7]} 44...
Ne6 {[%clk 0:00:33]} 45. Nc8 {[%clk 0:00:05.4]} 45... Bxd4 {[%clk 0:00:30.8]}
46. Nd6 {[%clk 0:00:05.3]} 46... Nxc5 {[%clk 0:00:30.3]} 47. b4 {[%clk
0:00:04.4]} 47... Ne4+ {[%clk 0:00:30.6]} 48. Nxe4 {[%clk 0:00:01]} 48... fxe4
{[%clk 0:00:31.5]} 0-1

[Event "Late-Titled-Tuesday-Blitz-February-27-2024"]
[Site "Chess.com"]
[Date "2024.02.27"]
[Round "4"]
[White "igorknyazev"]
[Black "carloseduar100"]
[Result "1-0"]
[WhiteElo "2210"]
[BlackElo "2375"]
[TimeControl "180+1"]
[EndTime "14:40:23 PST"]
[Termination "igorknyazev won by checkmate"]

1. e4 {[%clk 0:03:00.9]} 1... e6 {[%clk 0:02:59.3]} 2. d4 {[%clk 0:02:59.8]}
2... d5 {[%clk 0:02:49.1]} 3. Nd2 {[%clk 0:02:58.9]} 3... Nf6 {[%clk 0:02:49.1]}
4. e5 {[%clk 0:02:58.9]} 4... Nfd7 {[%clk 0:02:48.8]} 5. f4 {[%clk 0:02:58.5]}
5... c5 {[%clk 0:02:49.1]} 6. c3 {[%clk 0:02:58.7]} 6... Nc6 {[%clk 0:02:50]} 7.
Ne2 {[%clk 0:02:58.1]} 7... cxd4 {[%clk 0:02:50.4]} 8. Nxd4 {[%clk 0:02:56.9]}
8... Ndxe5 {[%clk 0:02:40.8]} 9. fxe5 {[%clk 0:02:49.9]} 9... Nxd4 {[%clk
0:02:41.1]} 10. cxd4 {[%clk 0:02:49]} 10... Qh4+ {[%clk 0:02:41.4]} 11. g3
{[%clk 0:02:42.6]} 11... Qxd4 {[%clk 0:02:41.8]} 12. Bb5+ {[%clk 0:02:19]} 12...
Bd7 {[%clk 0:02:30.1]} 13. Bxd7+ {[%clk 0:02:18.1]} 13... Kxd7 {[%clk 0:02:31]}
14. Nf3 {[%clk 0:02:15.4]} 14... Bb4+ {[%clk 0:02:30.9]} 15. Kf1 {[%clk
0:02:09.3]} 15... Qe4 {[%clk 0:02:16.6]} 16. Qe2 {[%clk 0:01:47.9]} 16... Qxe2+
{[%clk 0:02:02.7]} 17. Kxe2 {[%clk 0:01:47.1]} 17... Rac8 {[%clk 0:02:03.5]} 18.
Bd2 {[%clk 0:01:37.2]} 18... Rc2 {[%clk 0:01:58.4]} 19. Rhc1 {[%clk 0:01:37.4]}
19... Rxb2 {[%clk 0:01:55.8]} 20. Rab1 {[%clk 0:01:36.3]} 20... Rxb1 {[%clk
0:01:55.6]} 21. Rxb1 {[%clk 0:01:36.1]} 21... Bxd2 {[%clk 0:01:56.3]} 22. Nxd2
{[%clk 0:01:32.8]} 22... b6 {[%clk 0:01:56.4]} 23. Rc1 {[%clk 0:01:29.1]} 23...
f6 {[%clk 0:01:55.6]} 24. Nf3 {[%clk 0:01:27.8]} 24... h6 {[%clk 0:01:54.8]} 25.
Kd3 {[%clk 0:01:27.2]} 25... Rb8 {[%clk 0:01:53.2]} 26. a4 {[%clk 0:01:18.2]}
26... b5 {[%clk 0:01:51.4]} 27. Rb1 {[%clk 0:01:13.9]} 27... b4 {[%clk
0:01:39.3]} 28. Kd4 {[%clk 0:01:02.3]} 28... a5 {[%clk 0:01:35.6]} 29. Rc1
{[%clk 0:00:51.8]} 29... b3 {[%clk 0:01:34.8]} 30. Kc3 {[%clk 0:00:44.8]} 30...
Rb4 {[%clk 0:01:23.6]} 31. Rb1 {[%clk 0:00:41.2]} 31... Rxa4 {[%clk 0:01:01.2]}
32. Rxb3 {[%clk 0:00:41.8]} 32... Rc4+ {[%clk 0:01:00.5]} 33. Kd3 {[%clk
0:00:39.3]} 33... Ke7 {[%clk 0:00:48.8]} 34. Rb7+ {[%clk 0:00:38.5]} 34... Kf8
{[%clk 0:00:49.2]} 35. Nd4 {[%clk 0:00:36.8]} 35... fxe5 {[%clk 0:00:41.8]} 36.
Nxe6+ {[%clk 0:00:36.8]} 36... Kg8 {[%clk 0:00:38.6]} 37. Rxg7+ {[%clk 0:00:36]}
37... Kh8 {[%clk 0:00:39.2]} 38. Ra7 {[%clk 0:00:34.1]} 38... e4+ {[%clk
0:00:34.2]} 39. Ke3 {[%clk 0:00:33.7]} 39... Ra4 {[%clk 0:00:34]} 40. Nf4 {[%clk
0:00:28]} 40... Ra2 {[%clk 0:00:21.6]} 41. Nxd5 {[%clk 0:00:27.1]} 41... Rxh2
{[%clk 0:00:21.9]} 42. Nf6 {[%clk 0:00:27.2]} 42... Re2+ {[%clk 0:00:04.5]} 43.
Kxe2 {[%clk 0:00:26.4]} 43... h5 {[%clk 0:00:04.2]} 44. Rh7# {[%clk 0:00:26.3]}
1-0